Cogmind - Beta 14 @@@ ROGUE MODE // 2024.12.01 @ 19:52:41 Player: zicraftian Result: Destroyed by AF-4H9(R) with Subdweller Shrapnel Launcher Performance ------------- Evolutions (0) 0 Regions Visited (3) 600 Robots Destroyed (4) 20 Value Destroyed (126) 126 Prototype IDs (0) 0 Alien Tech Used (0) 0 Bonus (0) 0 TOTAL SCORE: 746 Bonus ------- None Cogmind --------- Core Integrity 0/250 Matter 263/300 Energy 265/265 System Corruption 0% Temperature Cool (0) Movement Rolling (95) Ox1 Location -10/Subcaves Parts ------- > --- POWER (1) -------- Improved Ion Engine > --- PROPULSION (2) --- Wheel Wheel > --- UTILITY (2) ------ Scrap Shield > --- WEAPON (2) ------- (None) > --- INVENTORY (5) ---- Light Ion Engine Seismic Detector Core Shielding Peak State ------------ > --- POWER ------------ Light Nuclear Core > --- PROPULSION ------- Aluminum Leg Aluminum Leg > --- UTILITY ---------- Targeting Computer Core Shielding > --- WEAPON ----------- Beam Cannon Light Assault Rifle > --- INVENTORY -------- Aluminum Leg Particle Gun [Rating: 9] Favorites ----------- Power Light Nuclear Core Engine Light Ion Engine Power Core Light Nuclear Core Propulsion Aluminum Leg Leg Aluminum Leg Wheel Wheel Utility Core Shielding Processor Targeting Computer Protection Core Shielding Weapon Light Assault Rifle Energy Gun Particle Gun Energy Cannon Beam Cannon Ballistic Gun Light Assault Rifle Build | -11 -10 -10 -10 ------- Run | Yrd Mat Min Sub Slots Evolved . | . . . . Power . | . . . . Propulsion . | . . . . Utility . | . . . . Weapon . | . . . . Parts Attached 17 | 6 3 7 1 Power 3 | 1 1 1 . Engine 2 | 1 . 1 . Core 1 | . 1 . . Reactor . | . . . . Propulsion 7 | 3 1 3 . Treads . | . . . . Leg 5 | 3 1 1 . Wheel 2 | . . 2 . Hover . | . . . . Flight . | . . . . Utility 3 | . . 2 1 Device . | . . . . Storage . | . . . . Processor 1 | . . 1 . Hackware . | . . . . Protection 2 | . . 1 1 Artifact . | . . . . Weapon 4 | 2 1 1 . Energy Gun 1 | . . 1 . Energy Cannon 1 | . 1 . . Ballistic Gun 2 | 2 . . . Ballistic Cannon . | . . . . Launcher . | . . . . Special Weapon . | . . . . Impact Weapon . | . . . . Slashing Weapon . | . . . . Piercing Weapon . | . . . . Special Melee Weapon . | . . . . Unidentified Prototypes . | . . . . Parts Lost 8 | . 1 7 . Power 2 | . 1 1 . Propulsion 3 | . . 3 . Utility . | . . . . Weapon 3 | . . 3 . Highest Loss Streak 4 | . 1 4 . To Critical Strikes . | . . . . Average Slot Usage (%) 73 | . 68 77 61 Engine 2 | . 4 . 14 Core 10 | . 6 12 . Leg 23 | . 28 24 . Wheel 2 | . . 1 28 Processor 4 | . . 6 4 Protection 5 | . . 6 14 Energy Cannon 11 | . 13 11 . Ballistic Gun 11 | . 14 11 . Peak Build Rating 9 | 5 7 9 8 Average Rating 6 | 3 5 7 7 On Entrance 4 | . 5 7 6 Naked Turns . | . . . . Heaviest Build 25 | 6 9 10 25 Greatest Support 20 | 20 20 20 20 Greatest Overweight (x) 3 | . . 3 1 Average Overweight (x) . | . . . . Largest Inventory Capacity 5 | 5 5 5 5 Average Capacity 5 | 5 5 5 5 Most Carried 5 | 2 2 4 5 Average Carried 1 | . . 2 2 Final Capacity 5 | 5 5 5 5 Final Carried 3 | . 2 2 3 Class Distribution -------------------- 100% | Mutant Dominant Class ---------------- Mutant | -10/Materials Mutant | -10/Mines Mutant | -10/Subcaves Resources | -11 -10 -10 -10 ----------- Run | Yrd Mat Min Sub Matter Collected 340 | 250 67 23 . Remotely . | . . . . Salvage Created 124 | 41 83 . . Parts 6 | 2 4 . . Haulers Intercepted . | . . . . Recyclers Shooed . | . . . . Parts Field Recycled . | . . . . Retrieved Matter . | . . . . Parts Self-Destructed . | . . . . Prevented . | . . . . Kills | -11 -10 -10 -10 ------- Run | Yrd Mat Min Sub Combat Hostiles Destroyed 4 | 1 2 1 . Melee 1 | . . 1 . Guns 2 | 1 1 . . Cannons 1 | . 1 . . Classes Destroyed 1 | 1 . . . Grunt 3 | 1 2 . . Best Kill Streak 2 | 1 2 1 . Combat Bots Only 2 | 1 2 1 . Max Kills in Single Turn 1 | 1 1 1 . Gunslinging . | . . . . Exploded . | . . . . Melee 1 | . . 1 . Uniques/NPCs Destroyed 1 | . . 1 . YI-UF0 (-10/Mines) Combat | -11 -10 -10 -10 -------- Run | Yrd Mat Min Sub Hostile Shots Fired 53 | 17 15 20 1 Missed 12 | 6 2 4 . Damage Taken 1009 | 117 172 667 53 Core 255 | 24 55 155 21 Absorbed by Shields . | . . . . Redirected to Shielding 31 | . . 31 . Core Remaining (%) 90 | 90 . . . Volleys Fired 19 | 9 8 2 . Largest 2 | 2 2 2 . Hottest 80 | 40 80 80 . Shots Fired 37 | 18 16 3 . Gun 28 | 18 8 2 . Cannon 9 | . 8 1 . Launcher . | . . . . Special . | . . . . Kinetic 27 | 18 8 1 . Thermal 10 | . 8 2 . Explosive . | . . . . Electromagnetic . | . . . . Robot Hit Streak 9 | 9 3 1 . Robot Miss Streak 1 | 1 1 1 . Penetration Max . | . . . . Secondary Targets . | . . . . Shots Hit Robots 19 | 11 7 1 . Core Hits 9 | 2 5 2 . Critical Kills . | . . . . Critical Parts Destroyed . | . . . . Critical Strikes . | . . . . Melee Attacks . | . . . . Impact . | . . . . Slashing . | . . . . Piercing . | . . . . Sneak Attacks . | . . . . Combat Hostiles . | . . . . Follow-up Attacks . | . . . . Damage Inflicted 228 | 113 91 24 . Guns 162 | 113 39 10 . Cannons 52 | . 52 . . Explosions . | . . . . Melee . | . . . . Ramming 14 | . . 14 . Kinetic 162 | 113 39 10 . Thermal 52 | . 52 . . Explosive . | . . . . Electromagnetic . | . . . . Impact . | . . . . Slashing . | . . . . Piercing . | . . . . Highest Corruption . | . . . . Average Corruption . | . . . . Corruption Purged . | . . . . Corruption Blocked . | . . . . Overload Shots . | . . . . Overflow Damage . | . . . . Projectiles . | . . . . Explosions . | . . . . Melee . | . . . . Knockbacks . | . . . . Impact . | . . . . Kinetic . | . . . . Secondary . | . . . . Self-Inflicted Damage 6 | . . 6 . Shots . | . . . . Rammed 4 | . . 4 . Targets Rammed 4 | . . 4 . Kicked . | . . . . Crushed . | . . . . Highest Temperature 69 | 12 69 44 . Average Temperature 25 | 7 33 21 . Received Heat Transfer 186 | 66 105 15 . Siege Activations . | . . . . Robots Corrupted . | . . . . Combat Hostiles . | . . . . Parts Fried . | . . . . Impact Corruptions . | . . . . Robots Melted . | . . . . Combat Hostiles . | . . . . Parts Melted . | . . . . Heat Transferred 111 | . 111 . . Parts Sabotaged . | . . . . Parts Stolen . | . . . . Parts Stripped . | . . . . Power Chain Reactions . | . . . . Alert | -11 -10 -10 -10 ------- Run | Yrd Mat Min Sub Peak Influence 83 | 20 83 46 . Initial 31 | . 13 31 . Average 26 | 3 58 19 . Maximum Alert Level . | . . . . Low Security (%) 100 | 100 100 100 . Level 1 . | . . . . Level 2 . | . . . . Level 3 . | . . . . Level 4 . | . . . . Level 5 . | . . . . High Security . | . . . . Max Security . | . . . . Squads Dispatched . | . . . . Investigation . | . . . . Extermination . | . . . . Reinforcement . | . . . . Assault . | . . . . Garrison . | . . . . Intercept . | . . . . Searches Triggered . | . . . . Construction Impeded . | . . . . Haulers Reinforced . | . . . . Active Scanning Responses . | . . . . Cargo Convoy Interrupts . | . . . . Stealth | -11 -10 -10 -10 --------- Run | Yrd Mat Min Sub Distress Signals . | . . . . Communications Jammed . | . . . . Distress Signals . | . . . . Times Spotted 12 | 1 4 6 1 Peak Tracking Total 3 | 1 3 2 . Tactical Retreats 2 | . . 2 . Traps | -11 -10 -10 -10 ------- Run | Yrd Mat Min Sub Traps Triggered . | . . . . Indirectly . | . . . . Trap Hack Attempts . | . . . . Triggered . | . . . . Disarmed . | . . . . Reprogrammed . | . . . . Reused . | . . . . Traps Extracted . | . . . . Installed . | . . . . Triggered . | . . . . Machines | -11 -10 -10 -10 ---------- Run | Yrd Mat Min Sub Machines Disabled 1 | . 1 . . Max in Single Turn 1 | . 1 . . Machines Repaired . | . . . . Machines Dismantled . | . . . . Machines Sabotaged . | . . . . Overloaded Fab Kills . | . . . . Hacking | -11 -10 -10 -10 --------- Run | Yrd Mat Min Sub Machines Accessed 1 | . 1 . . Terminals . | . . . . Fabricators . | . . . . Repair Stations . | . . . . Recycling Units 1 | . 1 . . Scanalyzers . | . . . . Garrison Access . | . . . . Total Hacks 6 | . 6 . . Successful 6 | . 6 . . Failed . | . . . . Catastrophic . | . . . . Database Lockouts . | . . . . Manual . | . . . . Terminals . | . . . . Fabricators . | . . . . Repair Stations . | . . . . Recycling Units 6 | . 6 . . Scanalyzers . | . . . . Garrison Access . | . . . . Terminal Hacks . | . . . . Fabricator Hacks . | . . . . Repair Station Hacks . | . . . . Recycling Unit Hacks 6 | . 6 . . Recycle Component 1 | . 1 . . Process 2 | . 2 . . Report Inventory 1 | . 1 . . Retrieve Matter 1 | . 1 . . Retrieve Components 1 | . 1 . . Scanalyzer . | . . . . Garrison Access Hacks . | . . . . Unauthorized Hacks . | . . . . Terminals . | . . . . Fabricators . | . . . . Repair Stations . | . . . . Recycling Units . | . . . . Scanalyzers . | . . . . Garrison Access . | . . . . Data Cores Recovered . | . . . . Used . | . . . . Hacking Detections . | . . . . Full Trace Events . | . . . . Feedback Events . | . . . . Feedback Blocked . | . . . . Robot Schematics Acquired . | . . . . Robots Built . | . . . . Authchips . | . . . . Time . | . . . . Total Robot Build Rating . | . . . . Part Schematics Acquired . | . . . . Parts Built . | . . . . Authchips . | . . . . Time . | . . . . Total Part Build Rating . | . . . . Parts Repaired . | . . . . Time . | . . . . Parts Recycled 1 | . 1 . . Recycled Matter 12 | . 12 . . Retrieved Matter 12 | . 12 . . Retrieved Components . | . . . . Parts Scanalyzed . | . . . . Part Schematics Acquired . | . . . . Parts Damaged . | . . . . Bothacking | -11 -10 -10 -10 ------------ Run | Yrd Mat Min Sub Used RIF Installer . | . . . . Robots Hacked . | . . . . Non-combat . | . . . . Combat . | . . . . Robot Hacks Applied . | . . . . Relay Couplers Released . | . . . . Fabnet Peak Effective % . | . . . . Robots Rewired . | . . . . Allies Hacked . | . . . . Hacks Repelled . | . . . . Allies | -11 -10 -10 -10 -------- Run | Yrd Mat Min Sub Total Allies 3 | . . 3 . Largest Group 3 | . . 3 . Highest-Rated Group 40 | . . 40 . Highest-Rated Ally 16 | . . 16 . Total Orders . | . . . . Ally Attacks 3 | . . 3 . Total Damage 15 | . . 15 . Kills . | . . . . Allies Corrupted . | . . . . Allies Melted . | . . . . Intel | -11 -10 -10 -10 ------- Run | Yrd Mat Min Sub Robot Analysis Total . | . . . . Derelict Logs Recovered 1 | . . 1 . Drone Launches . | . . . . Drone Recoveries . | . . . . Exploration | -11 -10 -10 -10 ------------- Run | Yrd Mat Min Sub Turns Passed 1205 | 189 272 678 66 Spaces Moved 935 | 134 175 559 67 Core 68 | 22 . 46 . Treads . | . . . . Legs 758 | 112 175 471 . Wheels 109 | . . 42 67 Hover . | . . . . Flight . | . . . . Fastest Speed 50 | 50 120 50 80 Average Speed 110 | 108 120 111 87 Slowest Speed 200 | 120 120 200 95 Overloaded Moves . | . . . . Propulsion Burnouts . | . . . . Robots Hopped . | . . . . Cave-ins Triggered . | . . . . Exploration Rate (%) 24 | 7 20 67 3 Regions Visited 3 Branch Regions 2 Pre-discovered Areas 1 | . . 1 . Known Exits Taken . | . . . . Unknown Exits Taken 3 | 1 1 1 . Scrap Searched . | . . . . Spaces Dug . | . . . . Terrain Destroyed . | . . . . Melee . | . . . . Projectile . | . . . . AOE . | . . . . Terrain Rammed . | . . . . Walls Destroyed . | . . . . Machines Disabled . | . . . . Actions | -11 -10 -10 -10 --------- Run | Yrd Mat Min Sub Total 1071 | 162 223 611 75 Wait 72 | 6 31 31 4 Move 932 | 133 174 558 67 Hop . | . . . . Pick Up 20 | 6 5 8 1 Fast Attach . | . . . . Attach 16 | 6 2 7 1 Detach 4 | 1 1 . 2 Swap 1 | . 1 . . Drop 3 | 1 1 1 . Fire 19 | 9 8 2 . Melee . | . . . . Ram 4 | . . 4 . Kick . | . . . . Crush . | . . . . Escape Stasis . | . . . . Rewire . | . . . . Trap . | . . . . Miscellaneous . | . . . . Route ------- -11/Scrapyard -10/Materials -10/Mines (discovered 2 exits: [*Mat] / [*Sub]) -10/Subcaves History --------- Turn | Location | Event 2 | -11/Scrapyard | Met Revision 17 110 | -11/Scrapyard | Discovered new exit (range 8) 190 | -11/Scrapyard | Entered Materials 303 | -10/Materials | Build established: Mutant 409 | -10/Materials | Discovered new exit (range 6) 462 | -10/Materials | Entered Mines 465 | -10/Mines | Learned Materials interactive machine intel 633 | -10/Mines | Discovered new exit (range 9) 704 | -10/Mines | Assisted by bots powering up and referring to "LRC-V3" 785 | -10/Mines | Learned location of Storage (-9) 788 | -10/Mines | Joined a pair of Derelicts in attacking an 0b10 outpost 1024 | -10/Mines | Lost 3 allies 1028 | -10/Mines | Core integrity fell below 50% 1060 | -10/Mines | Lost 4 parts (2n2w) 1077 | -10/Mines | Core integrity fell below 20% 1077 | -10/Mines | Destroyed YI-UF0 1107 | -10/Mines | Lost 3 parts (1p1n1w) 1133 | -10/Mines | Discovered new exit (range 10) 1140 | -10/Mines | Entered Subcaves 1206 | -10/Subcaves | Destroyed by AF-4H9(R) with Subdweller Shrapnel Launcher Last Messages --------------- The unstable cave ceiling collapses. K-01 Serf collects debris. Acquired Lgt. Ion Engine. Acquired 3 matter. K-01 Serf collects debris. Acquired Seismic Detector. K-01 Serf collects debris. EXIT=FOUND LOCATION=UNKNOWN AMBIENT_HEAT=-10 GOAL=ESCAPE YC-H8S(h): "Hey you don't look like the usual menacing locals. I'm on point searching for advanced tech we've heard is being developed in secret down here, seen anything like that?" YC-H8S(h) drops a Scrap Shield: "Protect yourself with this!" Acquired Scrap Shield. Discarded Targeting Computer. YC-H8S(h) destroyed. Map ----- +----------------------------------------------------+ | | | | | | | | | ?????????????????????????????????????????????????? | | ?????????????????????????????????????????????????? | | ?????????????????????????????????????????????????? | | ?????????????????????????????????????????????????? | | ?????????????????????????????????????????????????? | | ?????????????????????????????????????????????????? | | ?????????????????????????????????????????????????? | | ?????????????????????????????????????????????????? | | ?????????????????????????????????????????????????? | | ?????????????????????????????????????????????????? | | ?????????????????????????????????????????????????? | | ?????????????????????????????????????????????????? | | ?????????????????????????????????????????????????? | | ?????????????????????????????????????????????????? | | ??????????????#?????######???????????????????????? | | ???????????#### ??###;; ###????##??#????????????? | | ????# ## # #?# #; ;##???""##"#???????????? | | ??? ## ; #### "????????????? | | ???" ;;;# ## """????????????? | | ?????????# % R # ""?????????????? | | ????????# ## ; = ## ?????????????? | | ??????# # ### ; @ ;;## # #?????????????? | | ?????? #?# ;;## ## ####??????"##?? | | ???? ???# #### ; ##### # ### """#?? | | ????? #?????# ????## # #??# #???? | | ????? ????????#??????# # ##??### ## ### ### """"? | | ?????????????????????# ?????######??##????????? | | ?????????????????????# #???????????????????????? | | ????????????????????# ##???????????????????????? | | ??????????????????? #?????????????????????????? | | ??????????????????#####??????????????????????????? | | ?????????????????????????????????????????????????? | | ?????????????????????????????????????????????????? | | ?????????????????????????????????????????????????? | | ?????????????????????????????????????????????????? | | ?????????????????????????????????????????????????? | | ?????????????????????????????????????????????????? | | ?????????????????????????????????????????????????? | | ?????????????????????????????????????????????????? | | ?????????????????????????????????????????????????? | | ?????????????????????????????????????????????????? | | ?????????????????????????????????????????????????? | | ?????????????????????????????????????????????????? | | ?????????????????????????????????????????????????? | | ?????????????????????????????????????????????????? | | ?????????????????????????????????????????????????? | +----------------------------------------------------+ Best States ------------- Heat Dissipation 25 Energy Generation 14 Energy Capacity 265 Matter Stores 300 Matter Capacity 300 Sight Range 16 Terrain Scan Density 10 Armor Coverage 800 Core Shielding 20 Evasion (%) 55 Targeting Accuracy 5 Item Schematics ----------------- None Robot Schematics ------------------ None Fabricated ------------ Nothing Alien Tech Used ----------------- None Achievements -------------- Fist Fight Challenges ------------ None Game ------ Seed WeldingChipBiocell Manual? 0 Play Time 00:27:26 Cumulative 2.3 hours Start 2024.12.01 @ 19:22:17 End 2024.12.01 @ 19:52:41 Sessions 1 Manual Loads 0 Difficulty Rogue Special Mode None Game No. 2 Rogue 2 Adventurer 0 Explorer 0 Win Type - Total 0 Types 0/0/0/0/0/0/0/0/0 Lore% 5 Gallery% 2 Achievement% 2 Wizard Run 0 Options --------- Layout 1 ASCII 0 Keyboard 1 Movement Numpad Keybinds 0 Fullscreen 1 Font 24/Smallcaps Map View 50x35 Zoom Use 0% Tactical HUD 0 Map Filters NONE Filters NONE Steam 1 RUN: b41ac48b-fe50-4ef2-96e0-946e82734237